[Event "*** Titled Tuesday Blitz"]
[Site "Chess.com"]
[Date "2020.04.21"]
[Round "2"]
[White "ahachess"]
[Black "amelia91"]
[Result "1-0"]
[WhiteElo "2370"]
[BlackElo "1943"]
[TimeControl "180+1"]
[EndTime "10:17:12 PDT"]
[Termination "ahachess won by resignation"]

1. d4 {[%clk 0:02:41.9]} 1... Nf6 {[%clk 0:02:59]} 2. c4 {[%clk 0:02:42]} 2...
e6 {[%clk 0:02:58.8]} 3. Nc3 {[%clk 0:02:39.7]} 3... Bb4 {[%clk 0:02:58.4]} 4.
Qc2 {[%clk 0:02:40]} 4... O-O {[%clk 0:02:56.2]} 5. g3 {[%clk 0:02:35.9]} 5...
Bxc3+ {[%clk 0:02:50.3]} 6. Qxc3 {[%clk 0:02:35.8]} 6... Ne4 {[%clk 0:02:50]} 7.
Qc2 {[%clk 0:02:34.2]} 7... f5 {[%clk 0:02:48.5]} 8. Bg2 {[%clk 0:02:34.6]} 8...
d5 {[%clk 0:02:44.9]} 9. Nf3 {[%clk 0:02:33.7]} 9... Nd7 {[%clk 0:02:40.5]} 10.
O-O {[%clk 0:02:33.7]} 10... c6 {[%clk 0:02:37.7]} 11. b3 {[%clk 0:02:33.7]}
11... Ndf6 {[%clk 0:02:32.1]} 12. Ba3 {[%clk 0:02:32.3]} 12... Re8 {[%clk
0:02:30.4]} 13. Ne5 {[%clk 0:02:32.1]} 13... Nd7 {[%clk 0:02:16.1]} 14. Nd3
{[%clk 0:02:24.2]} 14... Nf8 {[%clk 0:01:51.9]} 15. Rad1 {[%clk 0:02:18.9]}
15... Bd7 {[%clk 0:01:50.6]} 16. Ne5 {[%clk 0:02:17.3]} 16... Ng6 {[%clk
0:01:36.6]} 17. Nxg6 {[%clk 0:02:15.8]} 17... hxg6 {[%clk 0:01:36.3]} 18. f3
{[%clk 0:02:16.1]} 18... Nf6 {[%clk 0:01:35.9]} 19. e4 {[%clk 0:02:15.5]} 19...
Kf7 {[%clk 0:01:24.7]} 20. e5 {[%clk 0:02:05.8]} 20... Ng8 {[%clk 0:01:14.4]}
21. h4 {[%clk 0:02:02.4]} 21... Ne7 {[%clk 0:01:08.5]} 22. Bc1 {[%clk
0:01:59.4]} 22... Rh8 {[%clk 0:01:02.2]} 23. Bg5 {[%clk 0:01:58.9]} 23... Qb6
{[%clk 0:01:01.3]} 24. Rf2 {[%clk 0:01:57.8]} 24... Rac8 {[%clk 0:00:57.9]} 25.
c5 {[%clk 0:01:52.3]} 25... Qc7 {[%clk 0:00:51.3]} 26. g4 {[%clk 0:01:51]} 26...
b6 {[%clk 0:00:47.6]} 27. b4 {[%clk 0:01:47.2]} 27... a5 {[%clk 0:00:46.4]} 28.
a3 {[%clk 0:01:42]} 28... axb4 {[%clk 0:00:46]} 29. axb4 {[%clk 0:01:42.3]}
29... Ra8 {[%clk 0:00:45.7]} 30. Re1 {[%clk 0:01:33]} 30... Bc8 {[%clk
0:00:41.4]} 31. h5 {[%clk 0:01:24.3]} 31... gxh5 {[%clk 0:00:34.4]} 32. Bxe7
{[%clk 0:01:23.5]} 32... Qxe7 {[%clk 0:00:32.5]} 33. gxf5 {[%clk 0:01:23.8]}
33... exf5 {[%clk 0:00:32.2]} 34. e6+ {[%clk 0:01:21.2]} 34... Kf6 {[%clk
0:00:23.4]} 35. Rfe2 {[%clk 0:01:14.7]} 35... g6 {[%clk 0:00:22.2]} 36. f4
{[%clk 0:01:10.8]} 36... bxc5 {[%clk 0:00:20]} 37. dxc5 {[%clk 0:01:08.1]} 37...
Ba6 {[%clk 0:00:19.4]} 38. Qc3+ {[%clk 0:01:07.2]} 1-0

[Event "*** Titled Tuesday Blitz"]
[Site "Chess.com"]
[Date "2020.04.21"]
[Round "2"]
[White "GelmanAlexander"]
[Black "Baby_Legs"]
[Result "0-1"]
[WhiteElo "2478"]
[BlackElo "2692"]
[TimeControl "180+1"]
[EndTime "10:17:13 PDT"]
[Termination "Baby_Legs won by resignation"]

1. c4 {[%clk 0:03:00.9]} 1... e6 {[%clk 0:02:59.8]} 2. Nf3 {[%clk 0:03:00.5]}
2... d5 {[%clk 0:02:59.3]} 3. d3 {[%clk 0:03:00.9]} 3... Nf6 {[%clk 0:02:57.3]}
4. Nbd2 {[%clk 0:03:00.9]} 4... c5 {[%clk 0:02:56.5]} 5. b3 {[%clk 0:02:57.3]}
5... Nc6 {[%clk 0:02:56.6]} 6. a3 {[%clk 0:02:56.7]} 6... Bd6 {[%clk 0:02:51.5]}
7. Rg1 {[%clk 0:02:54]} 7... d4 {[%clk 0:02:46.1]} 8. g4 {[%clk 0:02:53.2]} 8...
e5 {[%clk 0:02:35.8]} 9. g5 {[%clk 0:02:52.3]} 9... Nh5 {[%clk 0:02:35.8]} 10.
Ne4 {[%clk 0:02:50.2]} 10... Bf5 {[%clk 0:02:34.1]} 11. Nh4 {[%clk 0:02:39.8]}
11... Bxe4 {[%clk 0:02:26]} 12. dxe4 {[%clk 0:02:40.7]} 12... g6 {[%clk
0:02:25.6]} 13. e3 {[%clk 0:02:16.8]} 13... Ng7 {[%clk 0:02:25.1]} 14. Nf3
{[%clk 0:02:07.4]} 14... Qb6 {[%clk 0:02:13.3]} 15. exd4 {[%clk 0:02:01]} 15...
exd4 {[%clk 0:02:08.2]} 16. Bd3 {[%clk 0:01:57.9]} 16... O-O {[%clk 0:02:03.8]}
17. Rb1 {[%clk 0:01:47]} 17... Rae8 {[%clk 0:01:59]} 18. Kf1 {[%clk 0:01:46]}
18... f5 {[%clk 0:01:57.1]} 19. gxf6 {[%clk 0:01:44.3]} 19... Rxf6 {[%clk
0:01:56.7]} 20. Rg2 {[%clk 0:01:13.5]} 20... Ref8 {[%clk 0:01:46.9]} 21. Ng5
{[%clk 0:01:12.9]} 21... Qc7 {[%clk 0:01:42.8]} 22. Kg1 {[%clk 0:01:11.3]} 22...
Qd7 {[%clk 0:01:40.9]} 23. b4 {[%clk 0:01:05.1]} 23... h6 {[%clk 0:01:36.4]} 24.
bxc5 {[%clk 0:01:03.4]} 24... Bxc5 {[%clk 0:01:36.4]} 25. e5 {[%clk 0:01:02.2]}
25... Nxe5 {[%clk 0:01:31.5]} 26. Ne4 {[%clk 0:01:01.9]} 26... Nf3+ {[%clk
0:01:21.2]} 27. Kh1 {[%clk 0:01:02.3]} 27... Qc6 {[%clk 0:01:10.5]} 28. Bxh6
{[%clk 0:00:42]} 28... Re6 {[%clk 0:01:10.2]} 29. Bxg7 {[%clk 0:00:38.9]} 29...
Kxg7 {[%clk 0:01:03.1]} 30. Qc2 {[%clk 0:00:34.9]} 30... b6 {[%clk 0:00:47.9]}
31. Ng3 {[%clk 0:00:26.8]} 31... Rfe8 {[%clk 0:00:40.2]} 32. Nf5+ {[%clk
0:00:20.4]} 32... Kf8 {[%clk 0:00:34.6]} 33. Qc1 {[%clk 0:00:19.7]} 33... Re1+
{[%clk 0:00:32.7]} 34. Qxe1 {[%clk 0:00:14.6]} 34... Rxe1+ {[%clk 0:00:33.6]}
35. Rxe1 {[%clk 0:00:14.9]} 35... Nxe1 {[%clk 0:00:34.5]} 0-1

[Event "*** Titled Tuesday Blitz"]
[Site "Chess.com"]
[Date "2020.04.21"]
[Round "2"]
[White "BursaBBSatranc"]
[Black "rpragchess"]
[Result "0-1"]
[WhiteElo "2514"]
[BlackElo "2752"]
[TimeControl "180+1"]
[EndTime "10:17:14 PDT"]
[Termination "rpragchess won by resignation"]

1. d4 {[%clk 0:03:00.9]} 1... Nf6 {[%clk 0:02:59.2]} 2. Bf4 {[%clk 0:02:55.6]}
2... b6 {[%clk 0:02:48.7]} 3. e3 {[%clk 0:02:54.9]} 3... Bb7 {[%clk 0:02:47.7]}
4. Nf3 {[%clk 0:02:55]} 4... g6 {[%clk 0:02:47.6]} 5. h3 {[%clk 0:02:54.8]} 5...
Bg7 {[%clk 0:02:47.9]} 6. Be2 {[%clk 0:02:51.4]} 6... O-O {[%clk 0:02:48.5]} 7.
O-O {[%clk 0:02:52]} 7... d6 {[%clk 0:02:48.8]} 8. c3 {[%clk 0:02:50]} 8... c5
{[%clk 0:02:48.7]} 9. a4 {[%clk 0:02:49.7]} 9... a6 {[%clk 0:02:48.3]} 10. Nbd2
{[%clk 0:02:43.6]} 10... Nbd7 {[%clk 0:02:48.3]} 11. Bh2 {[%clk 0:02:42.5]}
11... Rc8 {[%clk 0:02:46.6]} 12. Bd3 {[%clk 0:02:29.2]} 12... e5 {[%clk
0:02:21.3]} 13. dxe5 {[%clk 0:02:25.7]} 13... dxe5 {[%clk 0:01:50.1]} 14. Bc4
{[%clk 0:02:07.2]} 14... Qe7 {[%clk 0:01:45.7]} 15. Qb3 {[%clk 0:01:53.8]} 15...
e4 {[%clk 0:01:32.1]} 16. Ne1 {[%clk 0:01:53.8]} 16... Rfd8 {[%clk 0:01:21.1]}
17. Be2 {[%clk 0:01:46.1]} 17... Bd5 {[%clk 0:01:08.3]} 18. Bc4 {[%clk
0:01:40.1]} 18... Bb7 {[%clk 0:01:00]} 19. Be2 {[%clk 0:01:39.6]} 19... h5
{[%clk 0:00:46]} 20. Nc4 {[%clk 0:01:36.7]} 20... Qe6 {[%clk 0:00:46.4]} 21. Qc2
{[%clk 0:01:27.7]} 21... Ne8 {[%clk 0:00:44.7]} 22. Rd1 {[%clk 0:01:22.4]} 22...
Bd5 {[%clk 0:00:43.6]} 23. b3 {[%clk 0:00:38.5]} 23... b5 {[%clk 0:00:38.3]} 24.
axb5 {[%clk 0:00:39.4]} 24... axb5 {[%clk 0:00:39.2]} 25. Na5 {[%clk 0:00:39.8]}
25... c4 {[%clk 0:00:37.5]} 26. b4 {[%clk 0:00:32.1]} 26... Ne5 {[%clk 0:00:35]}
27. Qa2 {[%clk 0:00:27.8]} 27... Nd3 {[%clk 0:00:34.1]} 28. Nc2 {[%clk 0:00:28]}
28... Bxc3 {[%clk 0:00:33.9]} 29. Nd4 {[%clk 0:00:26.3]} 29... Bxd4 {[%clk
0:00:34.2]} 30. exd4 {[%clk 0:00:26.6]} 30... c3 {[%clk 0:00:34.9]} 31. Qa3
{[%clk 0:00:24.1]} 31... c2 {[%clk 0:00:35]} 32. Rxd3 {[%clk 0:00:22]} 32...
exd3 {[%clk 0:00:34.7]} 33. Bxd3 {[%clk 0:00:22.9]} 33... Be4 {[%clk 0:00:24]}
34. Re1 {[%clk 0:00:22.5]} 34... Bxd3 {[%clk 0:00:23]} 0-1

[Event "*** Titled Tuesday Blitz"]
[Site "Chess.com"]
[Date "2020.04.21"]
[Round "2"]
[White "Andrei_Belozerov"]
[Black "Perecke"]
[Result "1-0"]
[WhiteElo "2628"]
[BlackElo "2159"]
[TimeControl "180+1"]
[EndTime "10:17:14 PDT"]
[Termination "Andrei_Belozerov won on time"]

1. e4 {[%clk 0:02:57.9]} 1... e5 {[%clk 0:02:54.1]} 2. Nf3 {[%clk 0:02:57.6]}
2... Nc6 {[%clk 0:02:53.5]} 3. Bb5 {[%clk 0:02:58.1]} 3... a6 {[%clk 0:02:52.3]}
4. Ba4 {[%clk 0:02:58.2]} 4... Nf6 {[%clk 0:02:52.8]} 5. O-O {[%clk 0:02:57.2]}
5... Be7 {[%clk 0:02:52.5]} 6. Re1 {[%clk 0:02:56.4]} 6... b5 {[%clk 0:02:52.1]}
7. Bb3 {[%clk 0:02:56.6]} 7... d6 {[%clk 0:02:52.2]} 8. c3 {[%clk 0:02:56.4]}
8... O-O {[%clk 0:02:50]} 9. h3 {[%clk 0:02:56.5]} 9... Na5 {[%clk 0:02:47.8]}
10. Bc2 {[%clk 0:02:56.5]} 10... c5 {[%clk 0:02:48.3]} 11. d4 {[%clk 0:02:56.1]}
11... Qc7 {[%clk 0:02:47.2]} 12. Nbd2 {[%clk 0:02:56]} 12... cxd4 {[%clk
0:02:47.4]} 13. cxd4 {[%clk 0:02:55.5]} 13... Nc6 {[%clk 0:02:48]} 14. Nb3
{[%clk 0:02:54.8]} 14... a5 {[%clk 0:02:46.9]} 15. Be3 {[%clk 0:02:54.8]} 15...
Bd7 {[%clk 0:02:30.9]} 16. Rc1 {[%clk 0:02:51.9]} 16... a4 {[%clk 0:02:27.9]}
17. Nbd2 {[%clk 0:02:51]} 17... Qb7 {[%clk 0:02:27.3]} 18. Bb1 {[%clk
0:02:50.5]} 18... Rfc8 {[%clk 0:02:26.9]} 19. Nf1 {[%clk 0:02:46.4]} 19... Bd8
{[%clk 0:02:26.8]} 20. Ng3 {[%clk 0:02:45.4]} 20... Bb6 {[%clk 0:02:23.2]} 21.
Re2 {[%clk 0:02:39.5]} 21... Rc7 {[%clk 0:01:33.8]} 22. dxe5 {[%clk 0:02:25.2]}
22... Bxe3 {[%clk 0:01:28.2]} 23. Rxe3 {[%clk 0:02:16.3]} 23... dxe5 {[%clk
0:01:26.5]} 24. Rec3 {[%clk 0:02:11.4]} 24... Rac8 {[%clk 0:01:24.7]} 25. Qd6
{[%clk 0:02:02.6]} 25... Ne8 {[%clk 0:01:07.4]} 26. Qd2 {[%clk 0:02:02.2]} 26...
b4 {[%clk 0:00:43.7]} 27. Rc5 {[%clk 0:01:58.5]} 27... Nd4 {[%clk 0:00:42.5]}
28. Rxc7 {[%clk 0:01:55.8]} 28... Nxf3+ {[%clk 0:00:42.4]} 29. gxf3 {[%clk
0:01:55.9]} 29... Rxc7 {[%clk 0:00:43.3]} 30. Rxc7 {[%clk 0:01:53.8]} 30... Qxc7
{[%clk 0:00:44.2]} 31. Kh2 {[%clk 0:01:44.7]} 31... Qd6 {[%clk 0:00:41.3]} 32.
Qe3 {[%clk 0:01:27]} 32... Nc7 {[%clk 0:00:22.5]} 33. Bd3 {[%clk 0:01:24]} 33...
Be6 {[%clk 0:00:18.4]} 34. Qa7 {[%clk 0:01:05.3]} 34... f6 {[%clk 0:00:11]} 35.
Be2 {[%clk 0:00:56.8]} 35... Bxa2 {[%clk 0:00:04.3]} 36. Qxa4 {[%clk 0:00:55.8]}
36... Qd4 {[%clk 0:00:03.5]} 37. Qxa2+ {[%clk 0:00:49.4]} 1-0

[Event "*** Titled Tuesday Blitz"]
[Site "Chess.com"]
[Date "2020.04.21"]
[Round "2"]
[White "ChesterF"]
[Black "obliviate12"]
[Result "0-1"]
[WhiteElo "2526"]
[BlackElo "2770"]
[TimeControl "180+1"]
[EndTime "10:17:15 PDT"]
[Termination "obliviate12 won on time"]

1. e4 {[%clk 0:03:00.4]} 1... c5 {[%clk 0:02:59.8]} 2. Nf3 {[%clk 0:03:00.5]}
2... d6 {[%clk 0:03:00.3]} 3. d4 {[%clk 0:03:01]} 3... cxd4 {[%clk 0:03:01.2]}
4. Nxd4 {[%clk 0:03:01.7]} 4... Nf6 {[%clk 0:03:01.6]} 5. Nc3 {[%clk 0:03:02.2]}
5... a6 {[%clk 0:03:02]} 6. Be3 {[%clk 0:03:02.1]} 6... e5 {[%clk 0:03:00.4]} 7.
Nb3 {[%clk 0:03:02]} 7... Be6 {[%clk 0:03:00.2]} 8. f3 {[%clk 0:03:01.3]} 8...
h5 {[%clk 0:03:00.4]} 9. Qd2 {[%clk 0:03:01.6]} 9... Nbd7 {[%clk 0:02:59.9]} 10.
Be2 {[%clk 0:02:59.6]} 10... Be7 {[%clk 0:02:54.3]} 11. O-O {[%clk 0:02:58.4]}
11... b5 {[%clk 0:02:29.5]} 12. a4 {[%clk 0:02:49]} 12... b4 {[%clk 0:02:29.1]}
13. Nd5 {[%clk 0:02:48.9]} 13... Bxd5 {[%clk 0:02:26.9]} 14. exd5 {[%clk
0:02:48.8]} 14... Nb6 {[%clk 0:02:27.3]} 15. Bg5 {[%clk 0:00:44]} 15... Nbxd5
{[%clk 0:02:07]} 16. a5 {[%clk 0:00:44]} 16... O-O {[%clk 0:02:02]} 17. Rfd1
{[%clk 0:00:26.3]} 17... Qc7 {[%clk 0:01:45.7]} 18. Rac1 {[%clk 0:00:14.5]}
18... Rfd8 {[%clk 0:01:26.5]} 19. c4 {[%clk 0:00:13.3]} 19... bxc3 {[%clk
0:01:26]} 20. bxc3 {[%clk 0:00:13.6]} 20... Rab8 {[%clk 0:01:18.7]} 21. c4
{[%clk 0:00:09.6]} 21... Qa7+ {[%clk 0:01:18.3]} 22. Kh1 {[%clk 0:00:08.5]}
22... Nb4 {[%clk 0:01:10]} 23. Be3 {[%clk 0:00:05.7]} 23... Qc7 {[%clk
0:00:53.2]} 24. Bb6 {[%clk 0:00:06.6]} 24... Rxb6 {[%clk 0:00:53.7]} 25. axb6
{[%clk 0:00:07.5]} 25... Qxb6 {[%clk 0:00:54.6]} 26. Rb1 {[%clk 0:00:08.3]}
26... Rb8 {[%clk 0:00:51.7]} 27. Nc1 {[%clk 0:00:07.3]} 27... a5 {[%clk
0:00:51.1]} 28. Nd3 {[%clk 0:00:07.8]} 28... h4 {[%clk 0:00:48.5]} 29. Nxb4
{[%clk 0:00:07.3]} 29... axb4 {[%clk 0:00:49.4]} 30. Bd3 {[%clk 0:00:07.5]}
30... Nd7 {[%clk 0:00:46.7]} 0-1

[Event "*** Titled Tuesday Blitz"]
[Site "Chess.com"]
[Date "2020.04.21"]
[Round "2"]
[White "SloLev"]
[Black "GMKrikor"]
[Result "1-0"]
[WhiteElo "2528"]
[BlackElo "2727"]
[TimeControl "180+1"]
[EndTime "10:17:15 PDT"]
[Termination "SloLev won by resignation"]

1. e4 {[%clk 0:02:53.6]} 1... c5 {[%clk 0:02:58.8]} 2. c3 {[%clk 0:02:53.6]}
2... d5 {[%clk 0:02:58.6]} 3. exd5 {[%clk 0:02:54.2]} 3... Qxd5 {[%clk
0:02:59.5]} 4. d4 {[%clk 0:02:54.7]} 4... g6 {[%clk 0:02:59.8]} 5. Nf3 {[%clk
0:02:55]} 5... Bg7 {[%clk 0:02:59.6]} 6. Be3 {[%clk 0:02:55]} 6... cxd4 {[%clk
0:02:55.7]} 7. cxd4 {[%clk 0:02:54.5]} 7... Nf6 {[%clk 0:02:56.3]} 8. Nc3 {[%clk
0:02:54.7]} 8... Qd6 {[%clk 0:02:56.8]} 9. Be2 {[%clk 0:02:54.2]} 9... O-O
{[%clk 0:02:54.1]} 10. O-O {[%clk 0:02:54.7]} 10... Be6 {[%clk 0:02:39]} 11. Rc1
{[%clk 0:02:49.2]} 11... Nc6 {[%clk 0:02:37]} 12. Nb5 {[%clk 0:02:41.1]} 12...
Qd7 {[%clk 0:02:23.3]} 13. Ne5 {[%clk 0:02:39.5]} 13... Nxe5 {[%clk 0:02:23.1]}
14. dxe5 {[%clk 0:02:40.4]} 14... Qxd1 {[%clk 0:02:22.7]} 15. Rfxd1 {[%clk
0:02:39.4]} 15... Nd5 {[%clk 0:02:23.2]} 16. Bd4 {[%clk 0:02:34.9]} 16... a6
{[%clk 0:01:50.1]} 17. Nc7 {[%clk 0:02:31.4]} 17... Rac8 {[%clk 0:01:39.1]} 18.
Nxe6 {[%clk 0:02:26.2]} 18... fxe6 {[%clk 0:01:40]} 19. Bc4 {[%clk 0:02:11.1]}
19... Rc6 {[%clk 0:01:22.9]} 20. Bb3 {[%clk 0:02:04.1]} 20... Rfc8 {[%clk
0:01:22.3]} 21. Rxc6 {[%clk 0:01:58.2]} 21... Rxc6 {[%clk 0:01:23.2]} 22. g3
{[%clk 0:01:54.2]} 22... Kf7 {[%clk 0:01:17.5]} 23. f4 {[%clk 0:01:52.9]} 23...
Nc7 {[%clk 0:00:35.7]} 24. Ba4 {[%clk 0:01:40.7]} 24... Rc4 {[%clk 0:00:30.1]}
25. Bb3 {[%clk 0:01:40.8]} 25... Rc6 {[%clk 0:00:30.4]} 26. Kf2 {[%clk 0:01:38]}
26... g5 {[%clk 0:00:26.3]} 27. Be3 {[%clk 0:01:36.8]} 27... gxf4 {[%clk
0:00:24]} 28. gxf4 {[%clk 0:01:36.7]} 28... Bh6 {[%clk 0:00:23.2]} 29. Kf3
{[%clk 0:01:36.7]} 29... Nd5 {[%clk 0:00:12.3]} 30. Rxd5 {[%clk 0:01:32.8]}
30... exd5 {[%clk 0:00:13.2]} 31. Bxd5+ {[%clk 0:01:33.3]} 31... e6 {[%clk
0:00:12.1]} 32. Bxc6 {[%clk 0:01:33.1]} 32... bxc6 {[%clk 0:00:13]} 33. f5
{[%clk 0:00:55.6]} 33... Bxe3 {[%clk 0:00:10]} 34. Kxe3 {[%clk 0:00:55.9]} 34...
exf5 {[%clk 0:00:10]} 35. Kf4 {[%clk 0:00:54.3]} 35... Ke6 {[%clk 0:00:10.5]}
36. b4 {[%clk 0:00:52.6]} 36... h6 {[%clk 0:00:06.2]} 37. h3 {[%clk 0:00:50.7]}
37... a5 {[%clk 0:00:03.2]} 38. bxa5 {[%clk 0:00:43.8]} 1-0

[Event "*** Titled Tuesday Blitz"]
[Site "Chess.com"]
[Date "2020.04.21"]
[Round "2"]
[White "DanielTitichoca"]
[Black "gurelediz"]
[Result "0-1"]
[WhiteElo "2313"]
[BlackElo "2612"]
[TimeControl "180+1"]
[EndTime "10:17:15 PDT"]
[Termination "gurelediz won by checkmate"]

1. e4 {[%clk 0:03:00.9]} 1... c5 {[%clk 0:02:59.5]} 2. Nf3 {[%clk 0:03:00.5]}
2... d6 {[%clk 0:02:56]} 3. d4 {[%clk 0:03:00]} 3... cxd4 {[%clk 0:02:55.9]} 4.
Nxd4 {[%clk 0:03:00]} 4... Nf6 {[%clk 0:02:56.4]} 5. Nc3 {[%clk 0:03:00.5]} 5...
a6 {[%clk 0:02:56.7]} 6. Bg5 {[%clk 0:02:57.9]} 6... Nbd7 {[%clk 0:02:55]} 7. f4
{[%clk 0:02:53.2]} 7... Qc7 {[%clk 0:02:49.9]} 8. Qe2 {[%clk 0:02:48.3]} 8... b5
{[%clk 0:02:46.2]} 9. O-O-O {[%clk 0:02:34.4]} 9... e6 {[%clk 0:02:44.2]} 10.
Nd5 {[%clk 0:01:36.5]} 10... exd5 {[%clk 0:02:12.5]} 11. exd5+ {[%clk
0:01:34.8]} 11... Be7 {[%clk 0:02:13.2]} 12. Nc6 {[%clk 0:01:26.6]} 12... Nb8
{[%clk 0:02:09.6]} 13. Bxf6 {[%clk 0:01:18.5]} 13... gxf6 {[%clk 0:01:55.6]} 14.
Qh5 {[%clk 0:00:46.2]} 14... Nxc6 {[%clk 0:01:43]} 15. dxc6 {[%clk 0:00:47.1]}
15... Qxc6 {[%clk 0:01:37.4]} 16. Re1 {[%clk 0:00:44]} 16... Qc5 {[%clk
0:01:11.5]} 17. Qf3 {[%clk 0:00:37.6]} 17... Ra7 {[%clk 0:01:05.8]} 18. Bd3
{[%clk 0:00:37.1]} 18... Be6 {[%clk 0:00:58.7]} 19. Re2 {[%clk 0:00:35.5]} 19...
f5 {[%clk 0:00:53]} 20. Qh5 {[%clk 0:00:28]} 20... Kd7 {[%clk 0:00:37.3]} 21.
Rhe1 {[%clk 0:00:27.7]} 21... Rc7 {[%clk 0:00:31.7]} 22. g4 {[%clk 0:00:26.8]}
22... Bf6 {[%clk 0:00:19]} 23. gxf5 {[%clk 0:00:20]} 23... Bc4 {[%clk
0:00:19.3]} 24. Kb1 {[%clk 0:00:17.6]} 24... Bxd3 {[%clk 0:00:18.2]} 25. cxd3
{[%clk 0:00:16.8]} 25... Qd5 {[%clk 0:00:17.3]} 26. Qh6 {[%clk 0:00:14.5]} 26...
Qxd3+ {[%clk 0:00:16.8]} 27. Ka1 {[%clk 0:00:14.3]} 27... Qxe2 {[%clk
0:00:15.9]} 28. Rb1 {[%clk 0:00:12.1]} 28... Qxb2+ {[%clk 0:00:15.6]} 29. Rxb2
{[%clk 0:00:10.7]} 29... Rc1# {[%clk 0:00:16.3]} 0-1

[Event "*** Titled Tuesday Blitz"]
[Site "Chess.com"]
[Date "2020.04.21"]
[Round "2"]
[White "Infernal_XaM"]
[Black "dukicz123"]
[Result "1-0"]
[WhiteElo "2945"]
[BlackElo "2603"]
[TimeControl "180+1"]
[EndTime "10:17:16 PDT"]
[Termination "Infernal_XaM won by resignation"]

1. Nf3 {[%clk 0:03:00.9]} 1... Nf6 {[%clk 0:02:59.8]} 2. g3 {[%clk 0:03:01.8]}
2... g6 {[%clk 0:03:00.2]} 3. Bg2 {[%clk 0:03:02.7]} 3... Bg7 {[%clk 0:03:00.8]}
4. O-O {[%clk 0:03:03.6]} 4... O-O {[%clk 0:03:01.4]} 5. c4 {[%clk 0:03:04.5]}
5... d6 {[%clk 0:03:01.5]} 6. d4 {[%clk 0:03:04.8]} 6... Nc6 {[%clk 0:03:01.9]}
7. Nc3 {[%clk 0:03:05.1]} 7... a6 {[%clk 0:03:02]} 8. e4 {[%clk 0:03:04.7]} 8...
Bg4 {[%clk 0:03:01.2]} 9. Be3 {[%clk 0:03:03.7]} 9... Nd7 {[%clk 0:02:58.3]} 10.
h3 {[%clk 0:02:51.7]} 10... Bxf3 {[%clk 0:02:57]} 11. Bxf3 {[%clk 0:02:51.2]}
11... e5 {[%clk 0:02:57.7]} 12. dxe5 {[%clk 0:02:48.7]} 12... Ncxe5 {[%clk
0:02:27.5]} 13. Be2 {[%clk 0:02:48]} 13... f5 {[%clk 0:02:26.5]} 14. f4 {[%clk
0:02:46.4]} 14... Nc6 {[%clk 0:02:13.5]} 15. exf5 {[%clk 0:02:45.5]} 15... Rxf5
{[%clk 0:02:12.2]} 16. Bd3 {[%clk 0:02:40.3]} 16... Rf8 {[%clk 0:02:08.6]} 17.
Qd2 {[%clk 0:02:38.1]} 17... Nf6 {[%clk 0:01:52.7]} 18. Rae1 {[%clk 0:02:36.8]}
18... Qd7 {[%clk 0:01:52.6]} 19. Kh2 {[%clk 0:02:34.8]} 19... Rae8 {[%clk
0:01:52.6]} 20. b3 {[%clk 0:02:32.4]} 20... Kh8 {[%clk 0:01:22]} 21. Nd5 {[%clk
0:02:27.8]} 21... Nxd5 {[%clk 0:01:06.8]} 22. cxd5 {[%clk 0:02:27.5]} 22... Ne7
{[%clk 0:01:07.5]} 23. Be4 {[%clk 0:02:23]} 23... Nf5 {[%clk 0:01:06.5]} 24. Bf2
{[%clk 0:02:22.3]} 24... Qb5 {[%clk 0:00:47]} 25. Qd3 {[%clk 0:02:15.8]} 25...
Qxd3 {[%clk 0:00:42.5]} 26. Bxd3 {[%clk 0:02:15.9]} 26... Kg8 {[%clk 0:00:39.4]}
27. Rxe8 {[%clk 0:02:08.9]} 27... Rxe8 {[%clk 0:00:39.8]} 28. Rc1 {[%clk
0:02:09]} 28... Re7 {[%clk 0:00:38.9]} 29. g4 {[%clk 0:02:07.4]} 29... Nd4
{[%clk 0:00:37.9]} 30. Kg2 {[%clk 0:02:05.2]} 30... Ne2 {[%clk 0:00:31.5]} 31.
Bxe2 {[%clk 0:01:46.5]} 31... Rxe2 {[%clk 0:00:32.4]} 32. Kf3 {[%clk 0:01:47.1]}
32... Re7 {[%clk 0:00:32.8]} 33. a4 {[%clk 0:01:42.6]} 33... Kf7 {[%clk
0:00:31.9]} 34. Bh4 {[%clk 0:01:35.8]} 34... Rd7 {[%clk 0:00:31.7]} 35. Ke4
{[%clk 0:01:30.9]} 35... Bf6 {[%clk 0:00:31.9]} 36. Bf2 {[%clk 0:01:26.9]} 36...
Re7+ {[%clk 0:00:27.6]} 37. Kf3 {[%clk 0:01:27.1]} 37... Ke8 {[%clk 0:00:27.8]}
38. h4 {[%clk 0:01:21.7]} 38... Kd7 {[%clk 0:00:26.9]} 39. h5 {[%clk 0:01:21.9]}
39... Bb2 {[%clk 0:00:21.2]} 40. Rh1 {[%clk 0:01:19.5]} 40... Bg7 {[%clk
0:00:18.5]} 41. hxg6 {[%clk 0:01:15.8]} 41... hxg6 {[%clk 0:00:18.4]} 42. Rh7
{[%clk 0:01:15.8]} 42... c6 {[%clk 0:00:18.2]} 43. Bh4 {[%clk 0:01:10.3]} 43...
Rf7 {[%clk 0:00:17.9]} 44. Bf6 {[%clk 0:01:10.1]} 44... Rxf6 {[%clk 0:00:16.3]}
45. Rxg7+ {[%clk 0:01:10.2]} 45... Kc8 {[%clk 0:00:16.7]} 46. g5 {[%clk
0:01:10.1]} 46... Rf5 {[%clk 0:00:16.8]} 47. dxc6 {[%clk 0:01:10.1]} 47... bxc6
{[%clk 0:00:17.7]} 48. Rxg6 {[%clk 0:01:10.5]} 48... Rd5 {[%clk 0:00:18.5]} 49.
Ke4 {[%clk 0:01:09.4]} 49... Kd7 {[%clk 0:00:17.3]} 50. Rg7+ {[%clk 0:01:08.2]}
50... Ke6 {[%clk 0:00:17.7]} 51. f5+ {[%clk 0:01:08.2]} 1-0